bitfinex/quotes_ETHUSD_20241130
["timestamp","ask_amount","ask_price","bid_price","bid_amount"]
[1732947242414,45.49531517,3719.6,3719.5,5.78853]
[1732947242719,45.49531517,3719.6,3719.5,8.1132804]
[1732947243024,45.49531517,3719.6,3719.5,8.59071277]
[1732947243680,45.49531517,3719.6,3719.5,8.32211277]
[1732947244275,34.62201294,3719.6,3719.5,8.94663947]
[1732947244569,33.27778294,3719.6,3719.5,8.94663947]
[1732947245510,26.55663294,3719.6,3719.5,8.94663947]
[1732947246289,1.81977008,3719.6,3719.5,7.83013947]
[1732947246492,6.52265044,3720.0,3719.9,3.53824]
[1732947246698,1.14616715,3720.0,3719.9,7.37261458]
[1732947246881,1.14616715,3720.0,3719.9,7.92632641]
[1732947246882,1e-08,3720.0,3719.9,7.92632641]
[1732947247075,0.005,3722.0,3721.9,0.2]
[1732947247380,1e-05,3722.0,3721.9,4.38203122]
[1732947247777,1e-05,3722.0,3721.9,3.7159997]
[1732947248016,1e-05,3722.0,3721.9,4.38203122]
[1732947248723,1e-05,3722.0,3721.9,7.38203122]
[1732947248883,1e-05,3722.0,3721.9,7.35517538]
[1732947251524,54.86229014,3722.1,3722.0,7.23208957]
[1732947251813,52.95869359,3722.1,3722.0,7.78208957]
[1732947252022,52.95869359,3722.1,3722.0,7.81267343]
[1732947252377,48.92870359,3722.1,3722.0,4.81267343]
[1732947252581,48.92870359,3722.1,3722.0,3.1503805]
[1732947252819,48.92870359,3722.1,3722.0,3.9194095]
[1732947253004,51.65453906,3722.1,3722.0,0.4636605]
[1732947253180,51.65453906,3722.1,3721.9,2.68679]
[1732947253181,51.65453906,3722.1,3720.4,0.1]
[1732947253384,51.65453906,3722.1,3720.2,0.1]
[1732947253587,51.65453906,3722.1,3721.4,2.68714]
[1732947253827,51.65453906,3722.1,3722.0,0.5]
[1732947253978,52.20453906,3722.1,3722.0,0.5]
[1732947254378,51.65453906,3722.1,3722.0,0.5]
[1732947254590,53.71173906,3722.1,3722.0,0.5]
[1732947254791,53.16173906,3722.1,3722.0,0.5]
[1732947255008,50.43590359,3722.1,3722.0,0.5]
[1732947255907,48.92870359,3722.1,3722.0,3.18672]
[1732947257627,42.21205359,3722.1,3722.0,6.18672]
[1732947258333,40.84515931,3722.1,3722.0,6.18672]
[1732947258492,35.47183931,3722.1,3722.0,6.59282546]
[1732947258824,35.47183931,3722.1,3722.0,6.9351724]
[1732947259030,35.21532668,3722.1,3722.0,7.47300236]
[1732947259388,28.49867668,3722.1,3722.0,7.47300236]
[1732947260428,28.49867668,3722.1,3722.0,7.0351724]
[1732947260587,28.49867668,3722.1,3722.0,6.9351724]
[1732947260792,28.49867668,3722.1,3722.0,6.49282546]
[1732947261016,28.49867668,3722.1,3722.0,6.90566706]
[1732947261188,28.49867668,3722.1,3722.0,6.49282546]
[1732947261594,27.15534668,3722.1,3722.0,6.90566706]
[1732947261798,27.15534668,3722.1,3722.0,6.49282546]
[1732947262200,21.78202668,3722.1,3722.0,6.49282546]
[1732947262420,16.32118425,3722.1,3722.0,7.00566706]
[1732947262592,14.08768927,3722.1,3722.0,7.45962115]
[1732947263132,14.08768927,3722.1,3722.0,6.84677955]
[1732947263308,14.08768927,3722.1,3722.0,3.18672]
[1732947263624,15.49685092,3722.1,3722.0,0.5]
[1732947264018,14.08768927,3722.1,3722.0,3.18672]
[1732947265732,7.37125927,3722.1,3722.0,6.83672]
[1732947265890,7.37125927,3722.1,3722.0,7.55199681]
[1732947266092,7.37125927,3722.1,3722.0,7.98798981]
[1732947266312,6.02792927,3722.1,3722.0,7.98798981]
[1732947266589,0.65504927,3722.1,3722.0,7.98798981]
[1732947267091,0.17781511,3722.1,3722.0,7.98798981]
[1732947267295,0.54098342,3724.7,3722.0,7.98798981]
[1732947267296,1.5476,3724.8,3723.9,5.68535]
[1732947268035,200.17970187,3724.0,3723.9,5.68535]
[1732947268239,200.17970187,3724.0,3723.9,6.52958175]
[1732947268526,200.17970187,3724.0,3723.9,5.68535]
[1732947268942,202.90553734,3724.0,3723.8,0.2686]
[1732947269248,202.90553734,3724.0,3723.7,2.68543]
[1732947269432,200.17970187,3724.0,3723.5,2.68558]
[1732947269739,200.1562423,3724.0,3723.9,5.68535]
[1732947269940,200.1562423,3724.0,3723.9,2.95395]
[1732947270157,200.0562423,3724.0,3723.9,2.95395]
[1732947271414,200.0562423,3724.0,3723.9,5.95395]
[1732947272348,193.3430423,3724.0,3723.9,6.44159108]
[1732947272690,193.3430423,3724.0,3723.9,5.95395]
[1732947273358,189.3151223,3724.0,3723.9,7.05673393]
[1732947273721,189.3151223,3724.0,3723.9,6.2458541]
[1732947273920,189.3151223,3724.0,3723.9,6.7958541]
[1732947274154,189.3151223,3724.0,3723.9,6.2458541]
[1732947274359,185.2872023,3724.0,3723.9,7.60673393]
[1732947275024,185.22962978,3724.0,3723.9,6.7958541]
[1732947275223,183.83570361,3724.0,3723.9,6.7958541]
[1732947275423,181.03671918,3724.0,3723.9,6.7958541]
[1732947275627,181.03671918,3724.0,3723.9,6.91489518]
[1732947275861,181.03671918,3724.0,3723.9,7.60673393]
[1732947276027,181.03671918,3724.0,3723.9,7.05673393]
[1732947276226,178.35143918,3724.0,3723.9,7.60673393]
[1732947276464,177.00879918,3724.0,3723.9,7.60673393]
[1732947276839,175.98610911,3724.0,3723.9,7.60673393]
[1732947277164,175.55990782,3724.0,3723.9,7.60673393]
[1732947277362,121.03198782,3724.0,3723.9,7.18349518]
[1732947277568,121.03198782,3724.0,3723.9,7.60673393]
[1732947277983,120.66764971,3724.0,3723.9,7.60673393]
[1732947278133,120.66764971,3724.0,3723.9,7.70673393]
[1732947278332,116.63972971,3724.0,3723.9,7.70673393]
[1732947278872,116.3594522,3724.0,3723.9,6.8958541]
[1732947279168,116.3594522,3724.0,3723.9,4.76621716]
[1732947279467,112.3315322,3724.0,3723.9,4.76621716]
[1732947280029,109.6464774,3724.0,3723.9,4.76621716]
[1732947280383,102.91968033,3724.0,3723.9,7.76621716]
[1732947280934,100.23023555,3724.0,3723.9,7.76621716]
[1732947281129,99.38823065,3724.0,3723.9,7.76621716]
[1732947281329,99.38823065,3724.0,3723.9,11.76621716]
[1732947281330,69.90960933,3724.0,3723.9,11.76621716]
[1732947281578,55.28914958,3724.0,3723.9,11.76621716]
[1732947281731,20.80384367,3724.0,3723.9,11.66621716]
[1732947281932,18.68384367,3724.0,3723.9,11.76621716]
[1732947282167,18.68384367,3724.0,3723.9,11.41909285]
[1732947282470,4.75244367,3724.0,3723.9,11.76621716]
[1732947283170,0.0539762,3725.0,3724.3,8.70366]
[1732947283488,54.4801421,3724.7,3724.6,11.60345]
[1732947283770,54.4801421,3724.7,3724.6,12.44492618]
[1732947284016,54.4801421,3724.7,3724.6,12.79205049]
[1732947284181,54.4801421,3724.7,3724.6,12.44492618]
[1732947284385,53.1377521,3724.7,3724.6,12.44492618]
[1732947284582,51.7954721,3724.7,3724.6,12.44492618]
[1732947284780,50.4531921,3724.7,3724.6,12.34492618]
[1732947285225,50.4531921,3724.7,3724.6,12.44492618]
[1732947285718,47.7686321,3724.7,3724.6,12.34492618]
[1732947285875,46.4263521,3724.7,3724.6,12.34492618]
[1732947286217,0.0539762,3725.0,3724.9,2.88463]
[1732947286510,3.17e-06,3726.0,3725.9,2.68391]
[1732947286871,3.17e-06,3726.0,3725.9,2.71070825]
[1732947288085,1.5647,3726.8,3726.7,2.68333]
[1732947288281,0.1562423,3727.6,3726.7,2.68333]
[1732947288282,1.86e-06,3726.9,3726.8,5.68326]
[1732947290634,1.86e-06,3726.9,3726.0,2.68384]
[1732947290635,0.7348222,3726.9,3723.8,1.37569047]
[1732947290919,8.59978,3726.8,3722.6,1.30214064]
[1732947291115,1.6072,3722.9,3720.7,1.5241]
[1732947291274,1.6072,3724.0,3722.7,2.68616]
[1732947291487,0.1,3723.4,3723.1,2.68591]
[1732947291684,1.6072,3724.0,3723.5,2.6856]
[1732947291887,1.6072,3724.0,3723.8,2.6854]
[1732947292385,1.6072,3724.0,3723.1,2.68593]
[1732947292687,1.6072,3724.0,3722.1,1.5241]
[1732947292688,1.6072,3724.0,3722.3,5.0]
[1732947292915,1.6072,3724.0,3722.4,2.7132314]
[1732947293119,1.6072,3724.9,3723.2,2.7812939]
[1732947293312,0.52317812,3725.3,3723.3,0.02684351]
[1732947293527,1.6072,3726.5,3723.7,0.1]
[1732947293841,1.6072,3726.5,3724.7,2.68477]
[1732947293985,1.6072,3726.5,3725.5,2.68417]
[1732947294330,1.6072,3726.5,3725.4,0.52779282]
[1732947294331,1.6072,3726.5,3726.4,0.53922225]
[1732947294486,1.6072,3726.5,3725.2,3.0]
[1732947294684,0.1,3725.9,3723.7,0.52570011]
[1732947294888,1.6072,3724.5,3722.1,1.5241]
[1732947295097,2.7812939,3724.0,3722.6,2.68627]
[1732947295309,2.7812939,3724.0,3721.9,2.68675]
[1732947295310,2.8812939,3723.4,3721.9,2.68675]
[1732947295531,1.6072,3722.5,3720.9,2.68746]
[1732947295750,1.6072,3721.5,3720.7,1.074163]
[1732947295935,0.033591,3721.4,3720.7,1.074163]
[1732947296234,0.033591,3721.4,3719.1,4.21564765]
[1732947296235,0.1,3720.3,3719.1,0.00278765]
[1732947296434,2.7812939,3720.0,3719.1,0.00278765]
[1732947296591,0.03360342,3720.1,3719.5,3.762633]
[1732947296791,0.03360675,3721.3,3719.2,5.3775]
[1732947297000,1.6072,3721.4,3721.3,2.68723]
[1732947297333,1.6072,3721.4,3720.7,2.68761]
[1732947297506,1.6072,3721.4,3720.0,2.68816]
[1732947297702,0.1,3721.3,3719.2,1.075081]
[1732947298034,1.6072,3721.4,3719.2,1.10195655]
[1732947298035,0.1,3721.2,3719.2,1.10195655]
[1732947298188,0.1,3721.2,3719.6,2.68844]
[1732947298189,0.1,3720.8,3719.6,2.68844]
[1732947298391,1.7072,3720.3,3719.2,1.075081]
[1732947298620,0.1,3720.1,3719.1,0.00278765]
[1732947298827,1.6072,3719.4,3719.1,0.00278765]
[1732947299036,0.2,3719.3,3717.0,0.0268908]
[1732947299240,1.6072,3718.4,3716.5,2.69065]
[1732947299526,1.6072,3718.4,3716.5,1.07581]
[1732947299727,1.77792,3718.4,3716.9,2.69038]
[1732947299928,1.7072,3718.4,3717.0,0.02689949]
[1732947300245,1.6072,3718.4,3718.0,2.68956]
[1732947300445,2.7812939,3720.2,3717.1,0.02689805]
[1732947300446,1.6072,3719.3,3719.0,2.68885]
[1732947300725,0.1,3719.5,3717.4,2.71690402]
[1732947300925,0.18072,3719.5,3717.3,1.55098878]
[1732947301138,0.1,3719.3,3717.8,2.68969]
[1732947301487,0.1,3718.9,3716.5,1.5241]
[1732947301732,0.1,3718.4,3716.5,1.5241]
[1732947301934,1.6072,3718.8,3717.3,2.69008]
[1732947302233,1.6072,3718.8,3716.3,1.075862]
[1732947302234,0.1,3718.3,3717.0,2.69032]
[1732947302398,1.6072,3718.2,3717.1,0.02689844]
[1732947302588,1.6072,3718.2,3718.0,2.68956]
[1732947303122,0.1,3719.1,3717.8,2.68971]
[1732947303330,1.6072,3718.9,3716.9,1.075688]
[1732947303541,1.6072,3718.9,3718.2,2.68943]
[1732947303701,1.6072,3718.9,3718.0,2.68958]
[1732947303902,1.6072,3718.9,3717.7,2.68979]
[1732947304137,1.6072,3718.9,3717.0,3.0]
[1732947304345,1.6072,3718.9,3717.5,0.0268935]
[1732947304500,1.6072,3718.9,3718.7,2.68904]
[1732947304705,2.91490805,3720.2,3717.1,1.5241]
[1732947304706,1.6072,3720.1,3718.8,3.0]
[1732947304931,1.7072,3720.1,3718.3,0.02688288]
[1732947305236,1.7072,3720.1,3718.7,3.0]
[1732947305237,1.92152631,3720.1,3718.7,3.0]
[1732947305435,1.88540554,3720.1,3718.8,3.0]
[1732947305740,1.88540554,3720.1,3718.7,0.02688887]
[1732947305741,1.60468554,3720.1,3719.9,2.68819]
[1732947305913,0.1,3721.7,3720.1,2.68809]
[1732947306242,0.1,3723.2,3721.1,3.0]
[1732947306440,0.14013496,3723.3,3721.1,3.0]
[1732947306441,0.14013496,3723.3,3721.2,0.02686541]
[1732947306738,0.52456899,3724.7,3723.8,2.68539]
[1732947306907,0.52456899,3724.7,3722.2,2.68653]
[1732947306908,0.1,3724.5,3723.1,3.0]
[1732947307248,0.1,3724.5,3722.1,2.68664]
[1732947307249,0.1,3724.1,3721.9,0.55]
[1732947307547,2.8812939,3723.3,3720.6,3.0]
[1732947307745,0.42171552,3723.2,3721.8,2.68684]
[1732947307955,0.1,3722.5,3721.2,3.0]
[1732947308098,0.1,3722.6,3721.3,2.68717]
[1732947308302,0.42171768,3723.2,3721.9,2.68675]
[1732947308510,0.42171768,3723.2,3721.4,3.0]
[1732947308511,0.1,3723.0,3721.6,2.68701]
[1732947308842,0.1,3722.8,3719.6,1.5277]
[1732947309066,0.2383439,3722.9,3719.6,1.5277]
[1732947309067,1.6259,3722.4,3719.7,0.02686929]
[1732947309205,1.6259,3722.4,3721.9,2.68678]
[1732947309643,1.6259,3722.4,3721.5,2.68703]
[1732947309861,1.6259,3722.4,3721.4,2.68713]
[1732947310139,1.6259,3722.4,3721.4,3.0]
[1732947310363,1.6259,3722.4,3720.9,3.55]
[1732947310504,1.6259,3722.4,3722.2,2.68656]
[1732947310707,1.6259,3722.4,3721.8,2.68686]
[1732947311401,1.6259,3722.4,3721.6,3.0]
[1732947311628,1.6259,3722.4,3719.5,2.68852]
[1732947311629,1.78849,3722.4,3719.5,2.68852]
[1732947311837,1.78849,3722.4,3719.8,8.06493]
[1732947312106,1.78849,3722.4,3719.9,0.0268705]
[1732947312414,2.7812939,3722.1,3721.1,2.68734]
[1732947312634,1.78849,3722.4,3721.1,2.68734]
[1732947312842,1.78849,3722.4,3720.8,2.68755]
[1732947313006,1.6259,3721.7,3719.9,2.6882]
[1732947313339,1.6259,3721.7,3719.1,0.02966547]
[1732947313550,1.6259,3721.7,3719.3,2.7812939]
[1732947313714,1.6259,3721.7,3719.4,0.02687005]
[1732947313916,1.78849,3721.7,3720.6,2.68769]
[1732947314162,0.03358868,3721.6,3719.1,0.00278765]
[1732947314455,2.7812939,3721.5,3719.7,2.68836]
[1732947314655,2.7812939,3721.5,3720.1,2.68809]
[1732947314871,1.6259,3721.4,3720.1,2.68809]
[1732947315161,2.68681,3721.9,3720.1,2.68809]
[1732947315162,1.6259,3721.3,3721.2,2.6873]
[1732947315465,2.7812939,3722.7,3721.2,2.6873]
[1732947315466,1.6259,3722.5,3721.5,2.68703]
[1732947315664,1.6259,3722.5,3721.3,3.0]
[1732947315665,1.6259,3722.5,3721.7,2.68693]
[1732947315880,1.6259,3722.5,3721.9,2.68676]
[1732947316077,1.6259,3722.5,3721.7,2.68693]
[1732947316365,1.6259,3722.5,3721.5,3.0]
[1732947316521,0.16259,3722.4,3721.4,2.68708]
[1732947316723,1.6259,3722.5,3720.8,0.02686862]
[1732947316921,0.03358415,3722.4,3721.2,3.0]
[1732947317141,1.6259,3722.0,3719.2,4.21639]
[1732947317363,2.7812939,3720.9,3718.4,2.68928]
[1732947317580,1.65950375,3720.8,3718.9,2.68891]
[1732947317740,0.44407977,3720.7,3719.0,2.68888]
[1732947317936,1.65950775,3720.6,3718.9,2.68895]
[1732947318232,1.65950775,3720.6,3718.8,2.68902]
[1732947318233,1.6259,3720.6,3718.8,2.68902]
[1732947318447,1.6259,3720.4,3718.3,2.68937]
[1732947318761,1.6259,3720.4,3718.0,1.0]
[1732947318762,1.6259,3719.6,3718.0,1.0]
[1732947319069,0.48843012,3719.5,3718.3,2.68939]
[1732947319273,0.0336151,3719.4,3718.0,1.0]
[1732947319437,0.1,3719.2,3718.0,1.0]
[1732947319637,2.68934,3718.4,3718.0,1.0]
[1732947319965,1.6259,3718.2,3718.0,1.0]
[1732947320178,4.75947203,3718.2,3718.0,1.0]
[1732947320332,2.68954,3718.1,3718.0,1.0]
[1732947320526,1.6259,3718.0,3716.3,2.6908]
[1732947320839,1.65953281,3717.9,3716.3,2.6908]
[1732947321165,1.6259,3717.5,3715.7,3.767356]
[1732947321327,0.03363562,3717.4,3716.2,2.6909]
[1732947321524,1.65953562,3717.5,3715.4,1.10315849]
[1732947321742,1.6259,3717.5,3716.2,2.69091]
[1732947322075,0.03363561,3717.4,3716.2,2.69091]
[1732947322276,1.65953462,3717.5,3716.2,2.69091]
[1732947322789,1.6259,3717.1,3715.9,2.69112]
[1732947322943,1.6259,3717.1,3716.8,2.69044]
[1732947323137,1.6259,3717.1,3716.3,2.6908]
[1732947323492,1.6259,3717.1,3715.0,1.0]
[1732947323652,1.6259,3717.1,3715.8,2.69119]
[1732947323982,0.03363723,3717.0,3715.5,2.69136]
[1732947324137,0.03363723,3717.0,3715.5,2.69141]
[1732947324851,1.6259,3716.9,3715.6,2.69133]
[1732947325038,0.03364129,3716.8,3715.4,2.69149]
[1732947325239,0.03364129,3716.8,3715.1,2.69168]
[1732947325452,1.6259,3716.6,3715.0,1.0]
[1732947325886,0.0336424,3716.5,3715.0,1.0]
[1732947326299,1.6595455,3716.6,3715.0,1.0]
[1732947326467,1.6259,3716.6,3715.0,1.02691489]
[1732947326669,1.6259,3716.6,3715.9,2.69112]
[1732947326881,1.6259,3716.6,3715.0,1.0]
[1732947327087,0.03364098,3716.5,3715.0,1.0]
[1732947327395,0.03364098,3716.5,3715.4,3.0]
[1732947327603,0.03364098,3716.5,3715.0,1.0]
[1732947327604,1.6259,3716.4,3715.0,1.0]
[1732947327803,1.6259,3716.2,3715.0,1.0]
[1732947327965,0.03365008,3716.1,3715.0,1.0]
[1732947328589,1.6259,3716.2,3715.5,2.69136]
[1732947328901,1.6259,3716.2,3715.2,2.69164]
[1732947329059,1.6259,3716.2,3715.6,2.69134]
[1732947329273,1.6259,3716.2,3715.7,3.0]
[1732947329502,1.6361,3717.5,3716.5,3.0]
[1732947329666,1.6361,3717.5,3715.6,3.0]
[1732947329881,1.6361,3717.3,3715.7,3.0]
[1732947330087,1.6361,3717.3,3716.3,2.69078]
[1732947330306,0.16361,3717.5,3715.0,1.0]
[1732947330307,1.6361,3717.1,3716.0,3.0]
[1732947330468,0.03363901,3717.0,3716.0,3.0]
[1732947330808,1.6361,3716.8,3715.2,3.0]
[1732947331019,1.6361,3716.8,3715.0,1.0]
[1732947331020,1.66974543,3716.7,3715.6,2.69133]
[1732947331310,1.6361,3716.7,3715.2,2.69164]
[1732947331624,0.03363699,3716.6,3715.9,2.69109]
[1732947331917,1.6361,3716.7,3715.0,1.0]
[1732947331918,1.6361,3716.7,3715.7,3.0]
[1732947332117,1.6361,3716.7,3716.4,2.69074]
[1732947332403,1.6361,3716.7,3716.0,5.69105]
[1732947332936,1.6361,3716.7,3716.1,2.69092]
[1732947333112,1.6361,3716.7,3716.3,2.69083]
[1732947333269,1.6361,3716.7,3716.1,2.69092]
[1732947333473,1.6361,3716.7,3715.8,2.69115]
[1732947333712,0.03364108,3716.6,3715.8,3.0]
[1732947333898,1.6361,3716.7,3715.6,2.9950458]
[1732947334097,1.6361,3716.7,3716.1,2.69092]
[1732947334274,1.6361,3716.7,3715.8,2.69116]
[1732947334775,1.6361,3716.7,3716.0,2.69104]
[1732947334975,1.6361,3716.7,3716.0,2.69106]
[1732947335213,1.6361,3716.7,3715.8,2.69119]
[1732947335399,0.03364106,3716.6,3715.6,2.69133]
[1732947335613,1.6361,3716.5,3715.0,1.0]
[1732947335918,0.03364805,3716.4,3715.0,1.0]
[1732947336117,1.6361,3716.3,3715.2,2.69162]
[1732947336413,0.03364643,3716.2,3715.2,2.69162]
[1732947336730,0.03364643,3716.2,3715.2,2.96022]
[1732947336731,0.16697464,3716.2,3715.2,2.96022]
[1732947337021,1.6361,3716.3,3715.2,0.2686]
[1732947337229,1.6361,3716.3,3715.2,0.29551533]
[1732947337520,1.6361,3716.3,3716.2,2.69092]
[1732947337697,1.6361,3716.3,3715.7,2.69122]
[1732947337902,1.6361,3716.3,3715.0,1.0]
[1732947337903,1.6361,3716.3,3715.5,2.96]
[1732947338732,1.6361,3716.3,3715.5,0.2686]
[1732947338887,1.79971,3716.3,3715.3,2.6915]
[1732947339087,1.6361,3716.3,3715.8,2.69118]
[1732947339300,1.6361,3716.3,3716.0,2.69104]
[1732947339593,1.6361,3716.3,3716.0,2.69106]
[1732947339791,1.6361,3716.3,3715.0,4.0]
[1732947339792,0.03363834,3716.2,3715.7,2.69122]
[1732947340105,1.6361,3716.3,3716.2,2.69092]
[1732947340462,1.6361,3717.4,3716.3,3.0]
[1732947340610,1.6361,3717.4,3716.8,2.69046]
[1732947340798,1.6361,3717.4,3716.5,2.69064]
[1732947340998,0.03363223,3717.3,3716.3,2.69084]
[1732947341232,0.03363223,3717.3,3716.5,0.2686]
[1732947341392,1.6361,3717.4,3716.4,2.95937]
[1732947341587,0.03363496,3717.3,3716.4,0.2686]
[1732947341901,1.66973519,3717.4,3716.3,3.0]
[1732947342105,0.43596952,3717.3,3715.9,2.69109]
[1732947342285,0.03363862,3717.2,3715.9,2.69109]
[1732947342621,1.6361,3717.1,3715.8,0.2686]
[1732947342957,1.6361,3717.1,3715.7,3.0]
[1732947342958,0.03364013,3717.0,3716.0,2.9596]
[1732947343589,1.6361,3716.9,3715.4,2.69144]
[1732947343789,1.6361,3716.7,3715.5,2.96001]
[1732947344017,0.03364392,3716.6,3715.5,2.96001]
[1732947344233,0.03364392,3716.6,3715.7,0.2686]
[1732947344413,1.6361,3716.7,3715.9,0.2686]
[1732947344726,1.85005069,3716.7,3715.9,0.2686]
[1732947344930,4.54062069,3716.7,3715.9,0.2686]
[1732947345095,1.85005069,3716.7,3715.9,0.2686]
[1732947345423,2.69063,3716.6,3715.3,0.2686]
[1732947345627,1.66974754,3716.5,3715.7,0.00278765]
[1732947345829,0.18500549,3716.4,3715.7,0.00278765]
[1732947346034,1.66974652,3716.5,3715.8,0.2686]
[1732947346332,1.66974652,3716.5,3715.7,2.69404765]
[1732947346333,1.66974155,3716.5,3715.7,0.00278765]
[1732947347314,0.03364155,3716.5,3716.0,0.2686]
[1732947347629,1.6361,3716.4,3715.7,0.00278765]
[1732947347927,0.0336441,3716.3,3715.7,0.00278765]
[1732947348148,0.16697441,3716.2,3715.7,0.00278765]
[1732947348323,0.03364653,3716.1,3715.7,0.00278765]
[1732947348633,0.16697441,3716.2,3715.7,0.00278765]
[1732947349447,0.03364645,3716.3,3715.7,2.69403765]
[1732947349742,1.6361,3716.4,3715.7,0.00278765]
[1732947350042,0.03364246,3716.3,3715.7,0.00278765]
[1732947351002,1.5714,3716.2,3715.7,0.00278765]
[1732947351204,1.5714,3716.0,3715.7,0.00278765]
[1732947352735,0.03364762,3715.9,3715.7,0.00278765]
[1732947352938,1.5714,3716.0,3715.7,0.00278765]
[1732947353456,0.54585975,3716.6,3714.3,2.69227]
[1732947353457,1.5714,3715.3,3714.3,2.69227]
[1732947353654,1.5714,3715.3,3714.5,2.69211]
[1732947353943,1.72854,3715.3,3714.5,2.69209]
[1732947354145,1.72854,3715.3,3714.2,2.69231]
[1732947354354,1.72854,3715.3,3713.1,0.1562423]
[1732947354355,0.03365518,3715.2,3714.3,2.69224]
[1732947354525,1.72854,3715.3,3714.5,2.69214]
[1732947354844,1.72854,3715.3,3714.3,2.69224]
[1732947355055,0.172854,3715.2,3714.0,5.69245]
[1732947355353,0.172854,3715.2,3713.1,0.1562423]
[1732947355354,1.5714,3715.1,3714.4,2.6922]
[1732947355595,1.5714,3715.1,3714.2,2.69236]
[1732947355986,1.5714,3715.1,3714.0,2.69251]
[1732947356151,1.5714,3715.1,3715.0,2.69179]
[1732947356502,1.5714,3715.1,3714.6,2.69201]
[1732947356851,1.5714,3715.1,3714.6,5.38402]
[1732947357049,1.5714,3715.1,3714.6,2.69201]
[1732947358048,1.5714,3715.1,3714.8,2.69193]
[1732947358286,1.5714,3715.9,3715.7,2.69121]
[1732947358494,1.5714,3716.6,3716.5,2.6907]
[1732947358989,1.5714,3716.6,3716.3,2.6908]
[1732947359195,1.5714,3716.6,3716.2,3.0]
[1732947359424,1.5714,3716.6,3716.2,2.69091]
[1732947359607,1.5714,3716.6,3716.2,2.69085]
[1732947359810,0.03363742,3716.5,3716.0,2.69106]
[1732947360018,1.5714,3716.6,3716.0,2.69106]
[1732947360322,1.5714,3716.6,3715.7,5.69399765]
[1732947360323,1.5714,3716.6,3715.8,2.69119]
[1732947360697,0.03364055,3716.5,3715.7,0.00278765]
[1732947361029,1.5714,3717.1,3715.7,0.00278765]
[1732947361190,1.5714,3717.1,3717.0,2.69034]
[1732947361390,0.03363049,3717.8,3716.6,2.69059]
[1732947361682,0.19413354,3717.8,3716.6,2.69059]
[1732947361887,1.5714,3717.7,3716.6,2.69059]
[1732947362134,1.60503346,3717.7,3716.0,3.0]
[1732947362291,0.03363407,3717.6,3716.9,2.69038]
[1732947362494,1.5714,3717.7,3716.9,2.69038]
[1732947362692,0.20682106,3717.6,3716.7,2.69052]
[1732947363288,0.20682106,3717.6,3716.3,3.0]
[1732947363289,0.20682106,3717.6,3716.5,2.69069]
[1732947363485,0.20682106,3717.6,3715.7,1.65528765]
[1732947363486,1.5714,3717.3,3715.8,3.0]
[1732947363727,1.5714,3717.0,3715.7,0.00278765]
[1732947363899,1.5714,3717.0,3716.6,2.69062]
[1732947364098,1.5714,3717.5,3717.2,2.69019]
[1732947364338,1.5714,3717.5,3717.4,2.69005]
[1732947364497,1.5714,3718.4,3717.1,2.6902]
[1732947364706,0.03362761,3718.3,3715.9,1.6525]
[1732947364899,0.03362761,3718.3,3717.3,2.69011]
[1732947365430,0.03362761,3718.3,3716.0,2.69106]
[1732947365431,1.5714,3718.4,3717.5,2.68991]
[1732947365725,0.15714,3718.3,3717.9,2.68968]
[1732947366090,0.15714,3718.3,3717.6,2.68989]
[1732947366294,0.15714,3718.3,3717.3,2.69006]
[1732947366532,0.03362584,3718.2,3717.4,5.69004]
[1732947366697,0.19076662,3718.3,3717.6,2.68989]
[1732947366892,0.15714,3718.3,3717.4,3.0]
[1732947367201,1.5714,3718.4,3717.7,2.68976]
[1732947367401,0.0336235,3718.3,3716.4,3.2686]
[1732947367636,1.5714,3718.4,3717.7,2.68983]
[1732947367803,1.5714,3718.4,3717.9,2.68964]
[1732947368141,1.5714,3718.4,3717.7,2.68983]
[1732947368142,1.5714,3718.4,3717.7,2.68977]
[1732947368290,0.03362223,3718.3,3717.6,2.68988]
[1732947368491,0.03362223,3718.3,3717.6,2.68983]
[1732947368736,1.5714,3718.4,3717.4,2.69005]
[1732947368904,1.5714,3718.4,3718.0,2.68958]
[1732947369235,1.5714,3718.4,3717.7,2.68981]
[1732947369437,1.5714,3718.4,3718.3,2.6894]
[1732947369729,1.5489,3719.6,3718.8,2.68901]
[1732947369933,0.1918657,3719.5,3718.5,3.0]
[1732947370296,0.1918657,3719.5,3718.3,5.6894]
[1732947370492,0.1918657,3719.5,3718.7,2.6891]
[1732947370996,0.1918657,3719.5,3717.7,0.2686]
[1732947371322,0.03361672,3719.4,3718.8,2.689]
[1732947371645,1.5489,3719.6,3718.5,3.0]
[1732947371817,1.5489,3719.6,3719.0,2.68888]
[1732947372022,1.5489,3719.6,3718.3,2.68934]
[1732947372023,1.5489,3719.6,3718.6,2.68918]
[1732947372220,0.03361574,3719.5,3718.9,2.68896]
[1732947372410,0.15825157,3719.4,3718.5,0.2686]
[1732947372607,1.6342,3719.1,3716.6,1.83498542]
[1732947372810,1.6342,3718.7,3716.6,1.6122]
[1732947373009,0.03362961,3718.6,3716.6,1.6122]
[1732947373226,1.6342,3718.5,3717.4,2.69004]
[1732947373540,0.20041046,3718.4,3717.5,2.68997]
[1732947373712,0.20041046,3718.4,3717.6,2.68989]
[1732947373897,0.16678296,3718.4,3717.6,2.68989]
[1732947374102,1.66782502,3718.5,3718.2,2.68946]
[1732947374103,1.6342,3718.5,3718.2,2.68946]
[1732947374335,1.6342,3719.2,3718.1,3.0]
[1732947374647,1.6342,3719.2,3718.1,3.2686]
[1732947374936,0.03361335,3719.1,3718.1,0.2686]
[1732947375097,0.03361669,3719.1,3718.4,2.68926]
[1732947375298,0.16678167,3719.0,3718.4,2.68929]
[1732947375562,0.16678167,3719.0,3718.2,2.68944]
[1732947375697,0.16678167,3719.0,3718.3,3.0]
[1732947375899,0.16678167,3719.0,3718.4,2.68932]
[1732947376146,0.16678167,3719.0,3718.2,3.0]
[1732947376299,0.16678167,3719.0,3718.3,2.68938]